bitfinex-derivatives/quotes_SOLF0:USTF0_20250514
["timestamp","ask_amount","ask_price","bid_price","bid_amount"]
[1747252912830,3.6116,177.44,177.3,15.77614911]
[1747252913017,1.9005,177.46,177.34,15.77614911]
[1747252913322,7.5349,177.46,177.35,117.72]
[1747252913729,5.6347,177.45,177.35,117.72]
[1747252914027,1.9005,177.46,177.35,117.72]
[1747252914428,58.74,177.47,177.35,117.72]
[1747252914629,117.74,177.47,177.36,1.7547]
[1747252914823,117.74,177.47,177.36,5.429]
[1747252915129,58.74,177.47,177.36,5.429]
[1747252915828,61.1345,177.5,177.36,5.429]
[1747252916028,61.1545,177.5,177.36,5.429]
[1747252916929,61.1545,177.5,177.44,5.6347]
[1747252917132,61.1545,177.5,177.4,118.12]
[1747252917525,59.36,177.5,177.4,118.12]
[1747252918126,64.9931,177.5,177.45,5.6342]
[1747252918433,59.36,177.5,177.45,5.6342]
[1747252918635,59.36,177.5,177.36,5.429]
[1747252918829,59.36,177.5,177.37,58.72]
[1747252919133,5.6341,177.47,177.42,5.6352]
[1747252919430,59.46,177.46,177.37,58.72]
[1747252919831,5.6349,177.44,177.4,5.6359]
[1747252920533,63.0652,177.46,177.37,58.72]
[1747252921633,5.635,177.44,177.4,5.6361]
[1747252921825,63.0652,177.46,177.37,58.72]
[1747252922329,5.6354,177.43,177.39,5.6362]
[1747252922523,118.16,177.42,177.31,58.7]
[1747252922728,1.9017,177.41,177.31,58.7]
[1747252922932,5.6365,177.39,177.31,58.7]
[1747252923128,1.9017,177.41,177.31,58.7]
[1747252923530,7.5376,177.41,177.31,58.7]
[1747252924135,1.9017,177.41,177.37,5.6367]
[1747252924329,1.9017,177.41,177.31,58.7]
[1747252924737,3.6052,177.46,177.31,58.7]
[1747252924934,59.46,177.42,177.32,1.8148]
[1747252925438,59.46,177.42,177.4,5.6359]
[1747252925629,59.46,177.42,177.35,58.7]
[1747252926035,59.46,177.42,177.41,5.6358]
[1747252926536,58.7,177.43,177.42,5.6354]
[1747252926934,59.44,177.45,177.42,5.6354]
[1747252927134,59.44,177.45,177.35,58.7]
[1747252927335,1.8152,177.46,177.35,58.7]
[1747252927535,61.2152,177.46,177.35,58.7]
[1747252927835,5.6349,177.44,177.39,5.6362]
[1747252928036,5.6349,177.44,177.35,58.7]
[1747252928335,61.2152,177.46,177.35,58.7]
[1747252928534,5.6346,177.45,177.4,5.6358]
[1747252929038,5.6348,177.44,177.4,5.6358]
[1747252929334,61.2152,177.46,177.39,5.6363]
[1747252929534,5.6348,177.44,177.35,58.7]
[1747252929931,76.99134911,177.46,177.35,58.7]
[1747252930136,5.6352,177.43,177.35,58.7]
[1747252930337,59.36,177.42,177.35,58.7]
[1747252930635,59.36,177.42,177.39,5.6362]
[1747252931537,64.9955,177.42,177.39,5.6362]
[1747252932241,59.36,177.42,177.35,58.7]
[1747252932533,59.36,177.42,177.31,58.7]
[1747252933638,5.6362,177.4,177.37,5.637]
[1747252935235,5.6362,177.4,177.31,58.7]
[1747252935434,5.6362,177.4,177.36,5.6372]
[1747252935636,5.6362,177.4,177.36,5.58943955]
[1747252936644,5.6365,177.39,177.36,5.58943955]
[1747252937240,1.9319,177.41,177.34,5.638]
[1747252937542,1.9319,177.41,177.31,58.7]
[1747252938540,64.8155,177.42,177.39,5.6362]
[1747252939844,5.6358,177.41,177.39,5.6362]
[1747252940041,5.6358,177.41,177.38,5.6366]
[1747252940741,9.85429005,177.4,177.31,58.7]
[1747252940943,5.6368,177.38,177.31,58.7]
[1747252941139,9.85429005,177.4,177.31,58.7]
[1747252941347,59.14,177.39,177.31,58.7]
[1747252941842,59.14,177.39,177.35,5.6374]
[1747252942043,59.14,177.39,177.31,58.7]
[1747252942044,5.6368,177.38,177.31,58.7]
[1747252942343,5.6368,177.38,177.35,5.6375]
[1747252942640,64.7765,177.39,177.31,58.7]
[1747252942942,59.14,177.39,177.36,5.6372]
[1747252943247,59.14,177.39,177.31,58.7]
[1747252943439,59.14,177.39,177.31,68.55429005]
[1747252943640,59.12,177.42,177.31,68.55429005]
[1747252943843,64.7555,177.42,177.32,3.764]
[1747252944047,64.7555,177.42,177.38,5.6365]
[1747252944238,64.7555,177.42,177.33,59.1]
[1747252945040,64.3352,177.43,177.33,59.1]
[1747252945244,117.76,177.43,177.33,59.1]
[1747252945943,5.6357,177.42,177.38,5.6365]
[1747252946144,5.6357,177.42,177.33,59.1]
[1747252946446,5.6357,177.42,177.38,5.6365]
[1747252947347,123.3952,177.43,177.39,5.6363]
[1747252947942,117.76,177.43,177.39,5.6363]
[1747252948147,58.7,177.43,177.35,59.14]
[1747252948445,58.96,177.45,177.35,59.14]
[1747252948649,58.96,177.45,177.42,5.6352]
[1747252949449,64.5947,177.45,177.42,5.6352]
[1747252950152,5.6347,177.45,177.42,5.6352]
[1747252950347,64.6747,177.45,177.42,5.6352]
[1747252950550,62.8338,177.46,177.43,5.6349]
[1747252950846,59.14,177.46,177.39,59.12]
[1747252951052,59.14,177.46,177.45,5.6345]
[1747252951444,59.14,177.46,177.39,59.12]
[1747252951641,59.14,177.46,177.44,5.6347]
[1747252951845,59.14,177.46,177.39,59.12]
[1747252952951,59.14,177.46,177.44,5.6348]
[1747252953754,546.26,177.49,177.39,59.12]
[1747252953952,58.9,177.48,177.39,59.12]
[1747252954159,64.5336,177.48,177.45,5.6345]
[1747252955649,5.6336,177.48,177.45,5.6345]
[1747252955852,64.4936,177.48,177.45,5.6345]
[1747252957158,64.4936,177.48,177.46,5.6341]
[1747252957952,58.86,177.48,177.39,59.12]
[1747252958456,5.635,177.44,177.41,5.6356]
[1747252958656,64.575,177.44,177.41,5.6356]
[1747252961556,64.575,177.44,177.42,5.6354]
[1747252961859,58.94,177.44,177.35,70.3951]
[1747252962052,59.04,177.45,177.35,70.3951]
[1747252962251,59.04,177.45,177.43,5.6351]
[1747252962652,64.6745,177.45,177.35,70.3951]
[1747252962953,5.6345,177.45,177.35,70.3951]
[1747252963259,5.6345,177.45,177.42,5.6354]
[1747252963455,5.6345,177.45,177.35,70.3951]
[1747252963857,5.6349,177.44,177.35,70.3951]
[1747252964057,118.12,177.46,177.35,70.3951]
[1747252964455,5.6348,177.45,177.41,5.6356]
[1747252964759,5.6348,177.45,177.35,70.3951]
[1747252965060,123.7543,177.46,177.42,5.6352]
[1747252965457,123.7543,177.46,177.35,70.3951]
[1747252965658,123.7543,177.46,177.42,5.6352]
[1747252966164,123.7543,177.46,177.43,5.6351]
[1747252966458,118.12,177.46,177.43,5.6351]
[1747252966660,118.12,177.46,177.35,70.3951]
[1747252966856,59.12,177.46,177.36,11.2747]
[1747252967064,59.12,177.46,177.36,27.03913918]
[1747252967259,59.12,177.46,177.38,9.84602281]
[1747252967561,59.12,177.46,177.45,5.6345]
[1747252968065,492.7734,177.49,177.46,5.6341]
[1747252968361,58.84,177.49,177.39,118.0]
[1747252968656,59.12,177.5,177.39,123.5052]
[1747252968861,59.12,177.5,177.41,9.84602281]
[1747252969156,64.753,177.5,177.46,5.634]
[1747252969363,59.12,177.5,177.46,5.634]
[1747252969563,59.12,177.5,177.43,59.12]
[1747252969862,64.753,177.5,177.46,5.6339]
[1747252970064,64.753,177.5,177.43,59.12]
[1747252970255,123.593,177.5,177.43,59.12]
[1747252970962,123.593,177.5,177.46,5.6339]
[1747252971165,123.593,177.5,177.43,59.12]
[1747252971463,64.753,177.5,177.43,59.12]
[1747252972364,64.753,177.5,177.46,5.6339]
[1747252972762,64.753,177.5,177.43,59.12]
[1747252973364,5.6333,177.49,177.43,59.12]
[1747252973559,59.12,177.5,177.43,59.12]
[1747252974563,64.7529,177.5,177.47,5.6337]
[1747252976458,5.6333,177.49,177.47,5.6337]
[1747252976664,5.6333,177.49,177.46,5.6341]
[1747252976860,9.84602281,177.47,177.35,58.76]
[1747252977060,5.6353,177.43,177.4,5.6358]
[1747252977863,5.6355,177.42,177.4,5.6358]
[1747252978066,9.84602281,177.44,177.39,5.6364]
[1747252978364,5.6357,177.42,177.39,5.6364]
[1747252979065,5.6358,177.41,177.39,5.6364]
[1747252979363,9.84602281,177.44,177.39,5.6364]
[1747252979568,5.6356,177.42,177.35,58.76]
[1747252979761,9.84602281,177.44,177.35,58.76]
[1747252980168,9.84602281,177.44,177.37,5.6368]
[1747252980367,9.84602281,177.44,177.35,58.76]
[1747252980765,5.6358,177.41,177.38,5.6365]
[1747252980962,5.6358,177.41,177.35,58.76]
[1747252981467,5.6358,177.41,177.38,5.6365]
[1747252981670,5.6358,177.41,177.35,58.76]
[1747252982467,5.6358,177.41,177.38,5.6365]
[1747252983071,64.1956,177.42,177.39,5.6364]
[1747252984168,58.56,177.42,177.39,5.6364]
[1747252984566,58.56,177.42,177.4,5.636]
[1747252984766,58.56,177.42,177.35,58.76]
[1747252985368,58.56,177.42,177.4,5.6358]
[1747252986069,58.56,177.42,177.41,5.6358]
[1747252986670,63.9946,177.45,177.42,5.6354]
[1747252987171,117.12,177.46,177.37,9.84602281]
[1747252987371,117.12,177.46,177.37,68.18602281]
[1747252987767,117.12,177.46,177.43,5.635]
[1747252989560,58.76,177.46,177.43,5.635]
[1747252990672,58.76,177.46,177.44,5.6348]
[1747252991271,58.76,177.46,177.43,5.635]
[1747252991673,58.76,177.46,177.39,58.78]
[1747252992373,58.76,177.46,177.44,5.6348]
[1747252996072,58.76,177.46,177.45,5.6345]
[1747252997474,58.76,177.46,177.35,11.2752]
[1747252997674,58.76,177.46,177.36,116.84]
[1747252998473,58.76,177.46,177.36,58.78]
[1747252998964,5.6351,177.43,177.39,5.6361]
[1747252999171,58.76,177.46,177.39,5.6361]
[1747252999374,58.76,177.46,177.36,58.78]
[1747252999973,5.6355,177.42,177.36,58.78]
[1747253001475,7.5133,177.41,177.38,5.6366]
[1747253001674,1.8775,177.41,177.32,58.78]
[1747253002173,7.5135,177.41,177.32,58.78]
[1747253002673,5.6362,177.4,177.37,5.6368]
[1747253003375,5.6362,177.4,177.36,5.6371]
[1747253003675,5.6362,177.4,177.32,58.78]
[1747253004672,7.5134,177.41,177.32,58.78]
[1747253004872,1.8775,177.41,177.32,58.78]
[1747253005072,5.6362,177.4,177.32,58.78]
[1747253005272,1.8775,177.41,177.32,58.78]
[1747253005471,1.8775,177.41,177.37,5.6368]
[1747253005675,7.5135,177.41,177.32,58.78]
[1747253005974,7.5135,177.41,177.37,5.6368]
[1747253006175,7.5135,177.41,177.32,58.78]
[1747253007180,7.5135,177.41,177.38,5.6367]
[1747253008776,1.8775,177.41,177.36,5.6372]
[1747253009279,9.84602281,177.4,177.35,5.6376]
[1747253009478,58.08,177.39,177.35,5.6376]
[1747253010179,5.6376,177.36,177.33,5.6381]
[1747253010874,5.6378,177.35,177.32,5.6386]
[1747253011276,5.6376,177.36,177.33,5.6383]
[1747253011677,60.1424,177.38,177.33,5.6383]
[1747253012982,5.6372,177.37,177.28,58.28]
[1747253013374,60.1424,177.38,177.28,58.28]
[1747253013574,60.1424,177.38,177.37,5.637]
[1747253013779,60.1424,177.38,177.28,58.28]
[1747253014180,60.1424,177.38,177.36,5.6372]
[1747253015777,65.7792,177.38,177.36,5.6372]
[1747253016479,5.6371,177.37,177.35,5.6376]
[1747253016678,60.1424,177.38,177.28,58.28]
[1747253017072,5.6377,177.35,177.28,58.28]
[1747253017279,58.04,177.35,177.28,58.28]
[1747253017474,5.6381,177.34,177.31,5.6388]
[1747253017678,58.04,177.35,177.28,58.28]
[1747253018080,58.04,177.35,177.32,5.6384]
[1747253018581,58.04,177.35,177.33,5.6382]
[1747253019183,63.6777,177.35,177.33,5.6382]
[1747253019677,63.6777,177.35,177.28,58.28]
[1747253019877,58.04,177.35,177.28,58.28]
[1747253020382,5.6381,177.34,177.31,5.6388]
[1747253020585,5.6381,177.34,177.28,58.28]
[1747253021479,5.6381,177.34,177.31,5.6388]
[1747253022281,5.6381,177.34,177.32,5.6385]
[1747253022982,5.6381,177.34,177.31,5.6389]
[1747253023482,58.3,177.34,177.29,5.6393]
[1747253023685,58.3,177.34,177.24,121.8276]
[1747253023874,58.3,177.34,177.24,63.8676]
[1747253024586,5.6386,177.32,177.3,5.6392]
[1747253025283,5.6384,177.33,177.31,5.6389]
[1747253027584,63.9381,177.34,177.31,5.6389]
[1747253027785,58.3,177.34,177.25,9.84602281]
[1747253028986,63.9382,177.34,177.31,5.6388]
[1747253030489,5.6383,177.33,177.3,5.6391]
[1747253030685,58.3,177.34,177.25,9.84602281]
[1747253030984,58.3,177.34,177.24,60.0875]
[1747253031192,5.6389,177.32,177.29,5.6396]
[1747253031794,71.87122281,177.34,177.29,5.6396]
[1747253032188,71.87122281,177.34,177.3,5.6392]
[1747253033288,71.87122281,177.34,177.29,5.6396]
[1747253033592,71.87122281,177.34,177.24,60.0875]
[1747253034592,5.6388,177.32,177.3,5.6392]
[1747253035191,5.6388,177.32,177.29,5.6395]
[1747253035494,5.639,177.31,177.24,60.0875]
[1747253035687,5.639,177.31,177.28,5.6397]
[1747253036192,5.639,177.31,177.26,5.6403]
[1747253036193,57.94,177.31,177.26,5.6403]
[1747253036392,57.92,177.3,177.18,76.30599515]
[1747253036596,9.84602281,177.28,177.18,57.92]
[1747253036893,5.6407,177.26,177.23,5.6413]
[1747253037398,5.6409,177.25,177.22,5.6417]
[1747253037790,57.94,177.27,177.18,57.92]
[1747253038095,5.6407,177.26,177.23,5.6415]
[1747253038296,57.94,177.27,177.23,5.6415]
[1747253038798,63.5803,177.27,177.23,5.6415]
[1747253039100,63.5803,177.27,177.24,5.6411]
[1747253039396,57.94,177.27,177.24,5.6411]
[1747253039997,57.94,177.27,177.25,5.6406]
[1747253040789,57.94,177.27,177.26,5.6405]
[1747253045813,13.57122281,177.34,177.23,9.84602281]
[1747253046015,57.94,177.33,177.24,57.94]
[1747253046415,57.94,177.33,177.24,69.2223]
[1747253047419,57.94,177.33,177.3,5.639]
[1747253047819,57.94,177.33,177.24,69.2223]
[1747253048511,57.94,177.34,177.25,11.2816]
[1747253048715,57.94,177.34,177.33,5.6383]
[1747253049313,7.4991,177.38,177.35,5.6376]
[1747253049515,57.94,177.37,177.35,5.6376]
[1747253050018,65.4391,177.38,177.35,5.6376]
[1747253050217,57.94,177.37,177.35,5.6376]
[1747253052423,57.94,177.37,177.34,5.6379]
[1747253052621,57.94,177.37,177.28,57.94]
[1747253053121,63.5773,177.37,177.33,5.6382]
[1747253053318,9.84602281,177.34,177.2,11.2848]
[1747253053514,9.84602281,177.34,177.1,147.90985203]
[1747253053515,9.84602281,177.31,177.21,115.88]
[1747253053719,57.94,177.3,177.21,115.88]
[1747253053922,57.94,177.29,177.21,115.88]
[1747253054416,57.94,177.29,177.23,5.6414]
[1747253054621,57.94,177.29,177.21,115.88]
[1747253054920,57.94,177.29,177.21,57.94]
[1747253055224,5.6406,177.26,177.22,5.6417]
[1747253055422,57.94,177.25,177.17,115.88]
[1747253055821,5.6414,177.24,177.17,57.94]
[1747253056024,57.94,177.25,177.17,57.94]
[1747253056420,67.78602281,177.25,177.17,57.94]
[1747253057724,67.78602281,177.25,177.19,5.6425]
[1747253057725,5.642,177.22,177.19,5.6425]
[1747253058423,5.642,177.22,177.18,5.643]
[1747253059223,67.78602281,177.25,177.17,57.94]
[1747253060327,9.84602281,177.28,177.17,57.94]
[1747253060624,57.94,177.27,177.17,115.88]
[1747253060826,63.5805,177.27,177.23,5.6412]
[1747253062125,57.94,177.27,177.21,5.6418]
[1747253062425,57.94,177.27,177.17,115.88]
[1747253062626,5.6412,177.24,177.2,5.6422]
[1747253062927,5.6412,177.24,177.17,115.88]
[1747253063622,5.6409,177.25,177.17,115.88]
[1747253063831,57.94,177.26,177.17,115.88]
[1747253064528,57.94,177.26,177.23,5.6414]
[1747253065026,63.5806,177.26,177.23,5.6414]
[1747253065228,63.5806,177.26,177.22,5.6417]
[1747253065623,63.5806,177.26,177.23,5.6415]
[1747253065820,63.5806,177.26,177.17,115.88]
[1747253066223,63.5806,177.26,177.23,5.6414]
[1747253069533,57.94,177.26,177.24,5.6411]
[1747253071232,57.94,177.26,177.25,5.6409]
[1747253073331,73.42602281,177.28,177.25,5.6409]
[1747253073531,497.30602281,177.31,177.21,57.94]
[1747253073734,57.92,177.3,177.21,115.86]
[1747253074428,5.64,177.28,177.25,5.6407]
[1747253075932,5.6397,177.29,177.26,5.6405]
[1747253077931,5.64,177.28,177.25,5.6406]
[1747253078231,5.64,177.28,177.21,115.86]
[1747253078437,5.6402,177.27,177.24,5.6409]
[1747253078635,9.84602281,177.28,177.21,115.86]
[1747253078827,67.76602281,177.28,177.21,57.94]
[1747253079031,5.6415,177.23,177.17,57.92]
[1747253079231,57.92,177.26,177.17,57.92]
[1747253079634,5.6414,177.24,177.17,57.92]
[1747253081635,5.6414,177.24,177.21,5.6419]
[1747253083340,5.6414,177.24,177.22,5.6418]
[1747253083540,5.6414,177.24,177.17,57.92]
[1747253084738,5.6416,177.23,177.21,5.642]
[1747253085037,9.84602281,177.25,177.17,57.92]
[1747253085339,9.84602281,177.25,177.19,5.6426]
[1747253085538,5.642,177.22,177.19,5.6426]
[1747253086140,57.94,177.24,177.2,5.6424]
[1747253086539,57.94,177.24,177.19,5.6426]
[1747253086739,5.6418,177.22,177.19,5.6426]
[1747253087240,57.94,177.24,177.17,57.92]
[1747253087642,63.5815,177.24,177.21,5.6419]
[1747253088636,57.94,177.24,177.17,57.92]
[1747253088837,9.84602281,177.23,177.13,57.94]
[1747253089038,9.84602281,177.2,177.13,57.94]
[1747253089237,5.6429,177.19,177.15,5.6439]
[1747253089939,5.6431,177.18,177.15,5.6439]
[1747253090337,57.9,177.18,177.09,63.5567]
[1747253090743,57.9,177.18,177.09,57.94]
[1747253090744,9.84602281,177.17,177.09,57.94]
[1747253090941,57.94,177.16,177.09,57.94]
[1747253091145,5.6446,177.14,177.09,57.94]
[1747253091344,57.92,177.14,177.11,5.6453]
[1747253091739,63.5646,177.14,177.09,57.94]
[1747253091944,67.76602281,177.14,177.05,1.7556]
[1747253092336,67.76602281,177.14,177.08,5.646]
[1747253092938,5.6452,177.12,177.08,5.646]
[1747253093343,5.6452,177.12,177.09,5.6458]
[1747253094245,5.6454,177.11,177.04,57.94]
[1747253094744,57.92,177.1,177.04,57.94]
[1747253095344,5.6462,177.09,177.0,57.92]
[1747253096250,5.6462,177.09,177.05,5.6471]
[1747253096546,5.6462,177.09,177.0,57.92]
[1747253097548,5.6462,177.09,177.06,5.6468]
[1747253098850,65.3258,177.1,177.06,5.6468]
[1747253100347,5.646,177.09,177.06,5.6468]
[1747253101746,5.646,177.09,177.0,57.92]
[1747253102244,57.94,177.08,177.0,57.92]
[1747253103552,5.6468,177.07,177.04,5.6473]
[1747253103753,57.94,177.06,177.04,5.6473]
[1747253104252,57.94,177.06,177.0,57.92]
[1747253104755,57.94,177.06,177.04,5.6473]
[1747253107050,5.6467,177.07,177.04,5.6473]
[1747253107252,57.94,177.12,177.0,57.92]
[1747253107953,5.6458,177.1,177.06,5.6466]
[1747253109054,5.6458,177.1,177.07,5.6465]
[1747253109455,63.5658,177.1,177.07,5.6465]
[1747253109850,63.5658,177.1,177.08,5.6463]
[1747253110351,63.5658,177.1,177.0,57.92]
[1747253110752,63.5658,177.1,177.07,5.6464]
[1747253111756,5.646,177.09,177.06,5.6468]
[1747253112056,57.94,177.09,177.0,57.92]
[1747253112246,5.6465,177.08,177.0,57.92]
[1747253112955,5.6465,177.08,177.04,5.6473]
[1747253113552,5.6467,177.07,177.04,5.6473]
[1747253113847,5.6467,177.07,177.05,5.6472]
[1747253114260,5.6467,177.07,177.04,5.6473]
[1747253115755,57.92,177.06,176.96,57.94]
[1747253115957,67.78602281,177.05,176.96,57.94]
[1747253116161,9.84602281,177.02,176.92,57.94]
[1747253116462,57.92,177.01,176.89,11.77542281]
[1747253116767,9.84602281,176.99,176.9,57.94]
[1747253117459,5.6507,176.95,176.91,5.6514]
[1747253117661,57.92,176.95,176.9,57.94]
[1747253118367,57.94,176.99,176.9,57.94]
[1747253118664,63.5892,176.99,176.9,57.94]
[1747253119162,63.5892,176.99,176.95,5.6502]
[1747253119362,5.6495,176.98,176.95,5.6502]
[1747253120267,5.6495,176.98,176.94,5.6506]
[1747253120565,5.6498,176.97,176.94,5.6506]
[1747253120763,5.6498,176.97,176.9,57.94]
[1747253121069,57.94,176.99,176.9,57.94]
[1747253121968,5.6497,176.98,176.9,57.94]
[1747253122271,5.6497,176.98,176.94,5.6505]
[1747253122474,57.94,176.99,176.9,57.94]
[1747253123773,63.5892,176.99,176.96,5.6499]
[1747253123971,57.94,176.99,176.9,57.94]
[1747253124172,57.94,176.99,176.91,57.94]
[1747253124372,57.94,176.99,176.98,5.6495]
[1747253125774,57.94,176.99,176.97,5.6497]
[1747253126373,57.94,176.99,176.96,5.65]
[1747253126580,57.94,176.99,176.95,57.94]
[1747253126972,57.94,176.99,176.96,5.6498]
[1747253127669,57.94,176.99,176.95,63.5902]
[1747253127875,57.94,176.99,176.95,57.94]
[1747253128474,9.84602281,176.98,176.91,57.94]
[1747253128972,5.6503,176.96,176.92,5.6511]
[1747253129569,5.6503,176.96,176.93,5.6509]
[1747253130269,5.6503,176.96,176.91,57.94]
[1747253130473,5.6499,176.97,176.94,5.6507]
[1747253130672,61.6947,176.99,176.91,57.94]
[1747253131074,67.344,176.99,176.95,5.6501]
[1747253131372,67.344,176.99,176.91,57.94]
[1747253131570,63.5893,176.99,176.96,5.6499]
[1747253134781,57.94,176.99,176.97,5.6496]
[1747253135071,57.94,176.99,176.91,57.94]
[1747253135375,57.94,176.99,176.91,115.88]
[1747253135777,57.94,176.99,176.97,5.6496]
[1747253140181,63.5892,176.99,176.96,5.65]
[1747253140384,57.94,176.99,176.91,115.88]
[1747253140580,57.94,176.99,176.97,5.6497]
[1747253141186,57.94,176.99,176.98,5.6495]
[1747253141383,57.94,177.02,176.98,5.6495]
[1747253141777,5.6489,177.0,176.97,5.6496]
[1747253142180,57.94,177.01,176.97,5.6496]
[1747253142484,5.649,177.0,176.97,5.6496]
[1747253143993,5.649,177.0,176.98,5.6494]
[1747253144283,63.5886,177.01,176.98,5.6494]
[1747253144585,0.98355096,177.15,176.98,9.84602281]
[1747253144787,0.98355096,177.15,176.97,57.94]
[1747253144788,3.6039,177.13,177.01,9.84602281]
[1747253144988,3.6039,177.13,177.02,57.94]
[1747253145288,5.646,177.09,177.05,5.647]
[1747253145488,63.586,177.09,177.02,57.94]
[1747253145789,57.94,177.09,177.07,5.6466]
[1747253147488,57.94,177.12,177.06,57.94]
[1747253147890,63.5851,177.12,177.09,5.6457]
[1747253148691,57.94,177.12,177.06,57.94]
[1747253149091,5.6459,177.1,177.06,63.5867]
[1747253150197,5.6459,177.1,177.07,5.6465]
[1747253150496,57.94,177.12,177.06,57.94]
[1747253150696,57.94,177.12,177.08,5.6461]
[1747253150898,57.92,177.13,177.06,57.94]
[1747253151200,57.92,177.13,177.07,5.6465]
[1747253151498,5.6451,177.12,177.06,57.94]
[1747253152397,63.5648,177.13,177.06,57.94]
[1747253152599,610.65819397,177.18,177.11,5.6453]
[1747253152793,115.82,177.17,177.11,5.6453]
[1747253152998,5.6444,177.14,177.11,5.6453]
[1747253153400,5.6444,177.14,177.1,5.6455]
[1747253153699,5.6444,177.14,177.06,57.94]
[1747253154003,5.6442,177.15,177.11,5.6453]
[1747253154200,63.5442,177.15,177.11,5.6453]
[1747253154402,57.9,177.15,177.07,9.84602281]
[1747253154603,57.9,177.16,177.07,9.84602281]
[1747253154999,63.5439,177.16,177.12,5.6447]
[1747253155504,63.5439,177.16,177.1,57.9]
[1747253155707,57.9,177.16,177.1,57.9]
[1747253156206,57.9,177.16,177.11,5.645]
[1747253156403,5.6442,177.15,177.11,5.645]
[1747253157303,5.6442,177.15,177.12,5.645]
[1747253157706,57.9,177.16,177.1,57.9]
[1747253158507,57.9,177.16,177.13,5.6444]
[1747253158805,57.9,177.16,177.1,57.9]
[1747253159202,5.6434,177.17,177.1,57.9]
[1747253159408,57.88,177.17,177.1,57.9]
[1747253159607,57.88,177.17,177.14,5.6441]
[1747253160005,63.5236,177.17,177.14,5.6441]
[1747253160210,57.88,177.17,177.14,5.6441]
[1747253160606,63.5236,177.17,177.13,5.6445]
[1747253161707,5.6437,177.16,177.13,5.6445]
[1747253162208,57.88,177.17,177.1,57.9]
[1747253162400,63.4416,177.19,177.1,57.9]
[1747253162604,57.88,177.2,177.1,67.74602281]
[1747253162806,57.88,177.2,177.11,57.88]
[1747253163004,57.88,177.2,177.17,5.6431]
[1747253163203,57.88,177.2,177.15,57.88]
[1747253163596,57.88,177.2,177.17,5.6432]
[1747253163802,63.5225,177.2,177.17,5.6432]
[1747253164306,5.6425,177.2,177.17,5.6432]
[1747253165309,57.88,177.21,177.15,57.88]
[1747253165509,63.5221,177.22,177.15,57.88]
[1747253165710,5.6422,177.21,177.18,5.6429]
[1747253166007,5.6422,177.21,177.15,57.88]
[1747253166311,5.6422,177.21,177.17,5.6432]
[1747253166505,5.6425,177.2,177.17,5.6432]
[1747253166706,57.88,177.22,177.15,57.88]
[1747253166902,9.84602281,177.24,177.15,57.88]
[1747253167201,57.86,177.24,177.15,57.88]